[Event "Chinese League Division-A 2024"]
[Site "Fuling Chongqing"]
[Date "2024.07.01"]
[Round "5.12"]
[White "Peng, Xiongjian"]
[Black "Zhao, Jun"]
[Result "1/2-1/2"]
[ECO "D37"]
[WhiteElo "2521"]
[BlackElo "2538"]
[Annotator "TA"]
[PlyCount "142"]
[EventDate "2024.06.28"]
[EventType "team-tourn"]
[EventCountry "CHN"]
[SourceTitle "playchess.com"]
[Source "ChessBase"]
[SourceQuality "1"]
[TimeControl "40/5400+30:1800+30"]

{[%evp 79,142,0,0,0,0,0,0,0,0,0,0,0,0,0,0,0,27,0,27,0,27,27,27,27,33,33,34,34,34,34,34,34,35,6,6,0,35,6,6,6,6,6,6,6,6,6,6,6,6,6,6,6,6,6,6,6,6,0,0,0,8,8,42,57,58]} 1. d4 {[%emt 0:00:03]} d5 {[%emt 0:01:10]} 2. Nf3 {[%emt 0:00:17]} Nf6 {[%emt 0:00:28]} 3. c4 {[%emt 0:00:06]} e6 {[%emt 0:00:40]} 4. Nc3 {[%emt 0:00:06]} Nbd7 {[%emt 0:00:49]} 5. Bf4 {[%emt 0:01:42]} dxc4 {[%emt 0:03:03]} 6. e3 {[%emt 0:00:05] D37: Queen's Gambit Declined: 5 Bf4.} a6 {[%emt 0:02:15]} 7. Bxc4 {[%emt 0:02:47]} b5 {[%emt 0:01:44]} 8. Be2 {[%emt 0:00:14]} Bb7 {[%emt 0:01:19]} 9. O-O {[%emt 0:00:21]} c5 {[%emt 0:09:23]} 10. Ne5 {[%emt 0:01:59]} cxd4 {[%emt 0:19:44]} 11. exd4 {[%emt 0:01:43]} Bb4 {[%emt 0:00:58]} 12. a4 {[%emt 0:07:09]} O-O {[%emt 0:06:47]} 13. axb5 {[%emt 0:11:39]} axb5 {[%emt 0:00:06]} 14. Qb3 {[%emt 0:09:48]} Bxc3 {[%emt 0:03:53]} 15. bxc3 {[%emt 0:00:14]} Nxe5 {[%emt 0:01:00]} 16. dxe5 {[%emt 0:05:06]} Qd5 {[%emt 0:18:49]} 17. Qxd5 {[%emt 0:00:12]} Nxd5 {[%emt 0:00:04]} 18. Bd2 {[%emt 0:00:16]} Bc6 {[%emt 0:00:11]} 19. f3 $146 {[%emt 0:04:35]} ({Predecessor:} 19. Rfb1 Nb6 20. h3 Nc4 21. Bxc4 bxc4 {½-½ Jurka,M (2360)-Velicka,P (2448) CZE-chT 0102 2001 (3)}) 19... Nb6 {[%emt 0:05:33]} 20. Be3 {[%emt 0:03:41]} Nd5 {[%emt 0:03:07]} 21. Bd2 {[%emt 0:01:22]} Nb6 {[%emt 0:00:00]} 22. Kf2 {[%emt 0:01:54]} Nc4 {[%emt 0:00:00]} 23. Bf4 {[%emt 0:00:41]} f6 {[%emt 0:09:50]} 24. exf6 {[%emt 0:00:57]} gxf6 {[%emt 0:00:03]} 25. Bh6 {[%emt 0:01:15]} Rfd8 {[%emt 0:00:16]} 26. Rfd1 {[%emt 0:00:15]} Rxd1 {[%emt 0:01:38]} 27. Rxa8+ {[%emt 0:00:23]} Bxa8 {[%emt 0:00:05]} 28. Bxd1 {[%emt 0:00:08]} Kf7 {[%emt 0:02:37]} 29. Bc2 {[%emt 0:04:39]} f5 {[%emt 0:00:05]} 30. Bg5 {[%emt 0:01:35]} Bd5 {[%emt 0:01:21]} 31. Bd3 {[%emt 0:00:27]} Nb2 {[%emt 0:01:01]} 32. Bc2 {[%emt 0:03:16]} Nc4 {[%emt 0:00:03]} 33. Bd8 {[%emt 0:00:59]} Na3 {[%emt 0:02:02]} 34. Bd1 {[%emt 0:02:47]} e5 {[%emt 0:00:23]} 35. g4 {[%emt 0:07:56]} Ke6 {[%emt 0:00:03]} 36. h4 {[%emt 0:01:13]} Nc4 {[%emt 0:00:17]} 37. g5 {[%emt 0:02:01]} Kd7 {[%emt 0:01:36]} 38. Bf6 {[%emt 0:00:25]} Bf7 {[%emt 0:00:33]} 39. Be2 {[%emt 0:06:55]} Bh5 {[%emt 0:02:09]} 40. f4 {[%emt 0:00:00]} Bxe2 {[%emt 0:00:00]} 41. Kxe2 {[%emt 0:05:28]} e4 {[%emt 0:04:33]} 42. h5 {[%emt 0:00:19]} Ke6 {[%emt 0:00:06]} 43. Bd4 {[%emt 0:00:06]} Kf7 {[%emt 0:00:05]} 44. Kd1 {[%emt 0:02:15]} Nb2+ {[%emt 0:04:30]} 45. Kd2 {[%emt 0:00:14]} Nd3 {[%emt 0:00:32]} 46. Ke3 {[%emt 0:01:49]} Ne1 {[%emt 0:00:27]} 47. Be5 {[%emt 0:01:12]} Nf3 {[%emt 0:01:48]} 48. Bc7 {[%emt 0:01:45]} Kg8 {[%emt 0:01:35]} 49. Bb6 {[%emt 0:01:14]} Kf7 {[%emt 0:00:04]} 50. Ke2 {[%emt 0:00:20]} Nh2 {[%emt 0:06:10]} 51. Bg1 {[%emt 0:09:11]} Ng4 {[%emt 0:02:16]} 52. Bd4 {[%emt 0:02:45]} Kg8 {[%emt 0:01:30]} 53. Kd2 {[%emt 0:02:36]} Kf7 {[%emt 0:00:13]} 54. Kc2 {[%emt 0:00:21]} Kg8 {[%emt 0:00:30]} 55. Kb3 {[%emt 0:04:02]} Kf7 {[%emt 0:00:06]} 56. Bc5 {[%emt 0:06:23]} Kg8 {[%emt 0:00:57]} 57. Bd4 {[%emt 0:04:31]} Kf7 {[%emt 0:00:04]} 58. c4 {[%emt 0:00:50]} bxc4+ {[%emt 0:00:05]} 59. Kxc4 {[%emt 0:00:04]} Ke6 {[%emt 0:03:31]} 60. Bg1 {[%emt 0:02:50]} Kf7 {[%emt 0:01:16]} 61. Kc3 {[%emt 0:00:30]} Ke6 {[%emt 0:00:36]} 62. Kd2 {[%emt 0:00:35]} Kf7 {[%emt 0:01:36]} 63. Ke2 {[%emt 0:00:06]} Ke6 {[%emt 0:01:07]} 64. Kf1 {[%emt 0:00:17]} Kf7 {[%emt 0:00:34]} 65. Kg2 $1 {[%emt 0:00:10]} Ke6 {[%emt 0:00:23]} 66. Kg3 {[%emt 0:00:05]} Kf7 {[%emt 0:00:06]} 67. Bd4 {[%emt 0:00:06]} Kg8 {[%emt 0:03:16]} 68. g6 {[%emt 0:03:11]} hxg6 {[%emt 0:02:34]} 69. hxg6 {[%emt 0:00:04]} e3 {[%emt 0:00:22]} 70. Kf3 {[%emt 0:00:58]} Kf8 $1 {[%emt 0:00:04]} 71. Bc3 {[%emt 0:01:02]} Kg8 {[%emt 0:00:21]} 1/2-1/2

[Event "Chinese League Division-A 2024"]
[Site "Fuling Chongqing"]
[Date "2024.07.01"]
[Round "5.13"]
[White "Zhou, Weiqi"]
[Black "Cao, Qingfeng"]
[Result "1-0"]
[ECO "B10"]
[WhiteElo "2599"]
[BlackElo "2189"]
[Annotator "TA"]
[PlyCount "107"]
[EventDate "2024.06.28"]
[EventType "team-tourn"]
[EventCountry "CHN"]
[SourceTitle "playchess.com"]
[Source "ChessBase"]
[SourceQuality "1"]
[TimeControl "40/5400+30:1800+30"]

{[%evp 9,107,0,16,-8,12,10,28,24,10,0,26,21,26,18,28,23,49,39,43,34,35,37,82,77,106,109,111,110,128,108,140,136,147,145,147,142,142,135,137,136,137,144,146,143,136,134,174,180,166,126,167,162,177,82,91,95,95,102,103,82,85,85,85,0,93,69,69,80,169,171,324,322,315,290,318,313,320,304,593,569,668,621,646,618,585,508,688,668,700,561,675,673,650,697,623,613,800,829,811,768]} 1. e4 {[%emt 0:00:03]} c6 {[%emt 0:00:10]} 2. Nf3 {[%emt 0:00:08]} d5 {[%emt 0:00:07]} 3. d3 {[%emt 0:00:04]} dxe4 {[%emt 0:03:57]} 4. dxe4 {[%emt 0:00:07]} Qxd1+ {[%emt 0:00:17]} 5. Kxd1 {[%emt 0:00:03]} Nd7 {[%emt 0:00:28]} 6. Nbd2 {[%emt 0:00:36]} e5 {[%emt 0:05:01]} 7. a4 {[%emt 0:00:48]} Bc5 {[%emt 0:03:24]} 8. Bc4 {[%emt 0:04:15] White has an edge.} Ngf6 {[%emt 0:06:28][%cal Bg8f6,Bf6e8,Be8d6][%mdl 32]} 9. Ke2 {[%emt 0:00:31]} a5 {[%emt 0:01:02]} 10. Ne1 {[%emt 0:04:05]} Ke7 {[%emt 0:03:03]} 11. f3 {[%emt 0:00:57]} Ne8 {[%emt 0:00:58]} 12. Nd3 {[%emt 0:07:32]} Nd6 {[%emt 0:22:50]} 13. Nxc5 {[%emt 0:01:59]} Nxc5 {[%emt 0:00:07]} 14. b3 {[%emt 0:00:02]} b6 {[%emt 0:00:58]} 15. Ba3 {[%emt 0:04:57]} Nxc4 {[%emt 0:07:07]} 16. bxc4 {[%emt 0:01:16]} Ba6 {[%emt 0:03:29]} 17. Rhb1 {[%emt 0:14:17]} Kd7 {[%emt 0:03:03]} 18. Rxb6 {[%emt 0:05:09]} Nxa4 {[%emt 0:02:51]} 19. Rb3 {[%emt 0:00:31][%cal Bb6b3,Bb3a3,Ba3a5][%mdl 32]} Ke6 {[%emt 0:11:06][%cal Bd7e6,Be6e7,Be7d6][%mdl 32] [#]} 20. Be7 $1 {[%emt 0:03:37][%mdl 512]} Kxe7 {[%emt 0:01:03]} (20... Bc8 21. Rba3) 21. Rxa4 {[%emt 0:00:05]} Bc8 {[%emt 0:01:51]} 22. Rba3 {[%emt 0:00:10] White is more active.} Be6 {[%emt 0:01:46]} 23. Rxa5 {[%emt 0:00:05]} Rxa5 {[%emt 0:00:22]} 24. Rxa5 $16 {[%emt 0:00:01][%mdl 4096] Endgame. KRB-KRN} Kd6 {[%emt 0:02:30]} 25. Kd3 {[%emt 0:05:39]} Rb8 {[%emt 0:01:28]} 26. Kc3 {[%emt 0:03:53]} g5 {[%emt 0:03:43]} 27. Nb3 {[%emt 0:01:13]} Rb7 {[%emt 0:02:12]} 28. Ra8 {[%emt 0:03:57]} h5 {[%emt 0:02:11]} 29. g3 {[%emt 0:12:22]} f6 {[%emt 0:03:46]} 30. Rh8 {[%emt 0:08:34]} Bf7 {[%emt 0:00:35]} 31. h4 {[%emt 0:00:12]} (31. Rh6 $18 Ke7 32. Na5) 31... gxh4 {[%emt 0:01:08]} 32. gxh4 {[%emt 0:00:02]} Ra7 {[%emt 0:00:15] Against Na5} 33. Rd8+ {[%emt 0:01:15]} Ke7 {[%emt 0:00:44]} 34. Rc8 {[%emt 0:00:28]} Kd7 {[%emt 0:00:49]} 35. Rb8 {[%emt 0:00:08]} Kc7 {[%emt 0:00:27]} 36. Rh8 {[%emt 0:05:03] [#] Black must now prevent Rh6.} Kd6 $1 {[%emt 0:00:20]} 37. Rf8 {[%emt 0:00:08]} Ke7 {[%emt 0:01:44]} 38. Rb8 {[%emt 0:00:04] White now steadily converts the win.} Kd6 {[%emt 0:00:15]} (38... Be8 $16) 39. Kb4 $18 {[%emt 0:00:51] And now Na5 would win.} Kc7 $2 {[%emt 0:03:57]} (39... Ra2 {is a better defense.}) 40. Rh8 {[%emt 0:00:00]} Kd6 {[%emt 0:00:00]} 41. c5+ {[%emt 0:02:32]} Ke7 {[%emt 0:03:46]} 42. Na5 {[%emt 0:00:09] Inhibits Rb7+.} Rc7 {[%emt 0:00:25]} 43. Kc3 {[%emt 0:04:33]} Kd7 $2 {[%emt 0:02:49]} (43... Bg6 44. Nc4 Ra7) 44. Rh7 {[%emt 0:01:32] White is clearly winning.} Ke6 {[%emt 0:14:12]} 45. Nc4 {[%emt 0:01:33] aiming for Nd6.} Rd7 {[%emt 0:00:43]} 46. Nd6 {[%emt 0:00:49] Threatens to win with Rxf7.} Bg6 {[%emt 0:01:54]} 47. Rh8 {[%emt 0:02:02]} Ra7 {[%emt 0:03:06]} 48. Rg8 {[%emt 0:00:30]} Bh7 {[%emt 0:01:01]} 49. Re8+ {[%emt 0:00:20]} Re7 {[%emt 0:00:54]} 50. Rc8 {[%emt 0:02:29]} Kd7 {[%emt 0:03:07]} 51. Rh8 {[%emt 0:00:24]} Ke6 {[%emt 0:01:06]} 52. Kb4 {[%emt 0:01:04]} f5 {[%emt 0:01:10]} 53. exf5+ {[%emt 0:01:12]} Kf6 {[%emt 0:00:16]} 54. Rc8 {[%emt 0:01:02] Weighted Error Value: White=0.07 (flawless) /Black=0.25 (precise) .  Mistake:       	White=1     	Black=3      Inaccurate:     	---       	Black=5      OK:         	White=23    	Black=13     Best:        	White=2     	Black=3      Strong:       	---       	Black=1} 1-0

[Event "Chinese League Division-A 2024"]
[Site "Fuling Chongqing"]
[Date "2024.07.01"]
[Round "5.14"]
[White "Sun, Fanghui"]
[Black "Song, Yuxin"]
[Result "1/2-1/2"]
[ECO "B55"]
[WhiteElo "2115"]
[BlackElo "2383"]
[Annotator "TA"]
[PlyCount "101"]
[EventDate "2024.06.28"]
[EventType "team-tourn"]
[EventCountry "CHN"]
[SourceTitle "playchess.com"]
[Source "ChessBase"]
[SourceQuality "1"]
[TimeControl "40/5400+30:1800+30"]

{[%evp 13,101,10,10,7,38,25,35,37,52,50,56,57,51,41,43,44,36,0,0,0,4,-9,-9,-78,-71,-120,-127,-162,-152,-136,-148,-165,-119,-154,-167,-183,-172,-223,-176,-165,-90,-95,-69,-80,-86,-87,-88,-89,-98,-76,-4,-3,-4,-91,-14,-10,-7,-8,-8,-14,-9,-9,0,0,0,0,0,-4,0,0,0,-6,0,-3,0,0,0,0,0,0,0,0,0,0,0,0,0,0,0,0]} 1. e4 {[%emt 0:00:04]} c5 {[%emt 0:00:04]} 2. Nf3 {[%emt 0:00:05]} d6 {[%emt 0:00:02]} 3. d4 {[%emt 0:00:06]} cxd4 {[%emt 0:00:03]} 4. Nxd4 {[%emt 0:00:05]} Nf6 {[%emt 0:00:07]} 5. Bc4 {[%emt 0:00:08]} e6 {[%emt 0:03:01]} 6. Bd3 {[%emt 0:00:06] B55: Sicilian: 2...d6 3 d4 cxd4 4 Nxd4 Nf6 5 f3.} Be7 {[%emt 0:02:44]} 7. c4 {[%emt 0:02:16]} O-O {[%emt 0:01:30]} 8. O-O {[%emt 0:01:13]} a6 {[%emt 0:01:54]} 9. Nc3 {[%emt 0:01:24]} Qc7 {[%emt 0:00:40]} 10. Be3 {[%emt 0:04:26]} Nbd7 {[%emt 0:02:19]} 11. Rc1 {[%emt 0:05:04]} b6 {[%emt 0:00:59]} 12. f4 {[%emt 0:03:46]} Bb7 {[%emt 0:00:23]} 13. f5 {[%emt 0:00:30]} Nc5 {[%emt 0:05:42]} 14. fxe6 {[%emt 0:21:11]} fxe6 {[%emt 0:01:00]} 15. b4 {[%emt 0:08:17]} (15. Bc2 {is more complex.} a5 16. Na4 Bxe4 17. Nxe6 Nxe6 18. Bxe4 Nxe4 19. Qd5) 15... Nxd3 {[%emt 0:00:15]} 16. Qxd3 {[%emt 0:00:04]} Rfc8 $146 {[%emt 0:11:03]} ({Predecessor:} 16... Qd7 17. Nf3 Qc7 18. Ng5 Ng4 19. Nxe6 Rxf1+ 20. Rxf1 Qd7 21. Nf4 Nxe3 22. Qxe3 Bf6 23. Ncd5 Qc6 24. Nxf6+ gxf6 25. Nd5 Rf8 26. Ne7+ {1-0 Nwachukwu,C (1893)-Catt,P Doncaster 4NCL op-B 15th 2017 (5)}) 17. Na4 {[%emt 0:15:38]} (17. Nxe6 Qxc4 18. Qxc4 Rxc4 $17) 17... Bxe4 {[%emt 0:15:09]} 18. Qe2 {[%emt 0:00:14]} (18. Qd2 $11) 18... e5 $17 {[%emt 0:04:31]} 19. Nb3 {[%emt 0:04:40]} (19. Nf5 $142 Bxf5 20. Rxf5) 19... Rab8 $17 {[%emt 0:03:46]} 20. c5 {[%emt 0:05:11] [#]} bxc5 $1 {[%emt 0:06:35]} 21. bxc5 {[%emt 0:00:18]} d5 {[%emt 0:00:48]} 22. Nb6 {[%emt 0:05:02]} Rd8 {[%emt 0:01:19]} (22... Rf8 $19 23. Nd2 Bg6 24. Qxa6 Kh8) 23. Bd2 {[%emt 0:02:04]} Qc6 {[%emt 0:12:38]} 24. Kh1 {[%emt 0:03:50]} d4 {[%emt 0:00:54]} 25. Na5 {[%emt 0:02:32]} (25. Nc4 $142) 25... Qb5 {[%emt 0:00:15]} 26. Nbc4 {[%emt 0:04:09]} Bd5 {[%emt 0:09:36]} (26... Bxc5 27. Rxf6 $11) (26... d3 $19 27. Qe1 Qxc5 (27... Bxc5 28. Rxf6 Bxg2+ 29. Kxg2 $11) 28. Rxf6 Bxg2+ (28... gxf6 29. Qxe4 Rbc8 30. Qg4+ Kh8 31. Rf1 $11) 29. Kxg2 Bxf6 (29... gxf6 30. Ne3 $14)) 27. c6 $17 {[%emt 0:01:58]} Bxc6 {[%emt 0:03:26]} (27... Bd6 28. a4 Bxc4 (28... Qxa4 $2 29. Nxd6 Rxd6 30. Qxe5 $18) 29. Rxc4 $16) (27... Re8 {feels hotter.} 28. c7 Rbc8 29. a4 Qd7) 28. Nxc6 {[%emt 0:00:34]} Qxc6 {[%emt 0:00:02]} 29. Nxe5 {[%emt 0:02:58]} Qe6 {[%emt 0:02:11]} 30. Rfe1 {[%emt 0:01:23]} Ba3 {[%emt 0:01:46]} ({Worse is} 30... Qxa2 31. Nc6 Bf8 (31... Ba3 $2 32. Ra1 $16) 32. Nxd8 Rxd8 33. Ra1 $16) 31. Rc6 {[%emt 0:00:39]} d3 {[%emt 0:01:41]} (31... Bd6 $17 {And now ...Qxe5 would win.} 32. Qxa6 Ra8) 32. Rxe6 $11 {[%emt 0:01:17]} dxe2 {[%emt 0:00:02]} 33. Nc4 {[%emt 0:00:52]} (33. Nf3 $1 $11 {was the only way to keep the balance.}) 33... Bb4 {[%emt 0:00:28]} ({Better is} 33... Rbc8 $1 $17 {[%cal Rc8c4]} 34. Ba5 Rd5 (34... Rxc4 35. Bxd8 Bb4 36. R6xe2 $17)) 34. R6xe2 $11 {[%emt 0:00:54]} Bxd2 {[%emt 0:01:21]} 35. Nxd2 {[%emt 0:00:05]} Rb2 {[%emt 0:00:28]} 36. Nf3 {[%emt 0:00:26]} Rdb8 {[%emt 0:00:18]} 37. Kg1 {[%emt 0:01:51]} a5 {[%emt 0:01:14]} 38. Ne5 {[%emt 0:01:01]} a4 {[%emt 0:01:12]} 39. Nc6 {[%emt 0:01:36]} R8b6 {[%emt 0:01:46]} 40. Na5 {[%emt 0:00:00]} R6b4 {[%emt 0:00:00]} 41. Nc6 {[%emt 0:04:49]} Rb6 {[%emt 0:06:07]} 42. Na5 {[%emt 0:02:14]} R6b4 {[%emt 0:00:37]} 43. Nc6 {[%emt 0:00:07]} Rxe2 {[%emt 0:02:13]} 44. Rxe2 {[%emt 0:00:04]} Rb1+ {[%emt 0:01:59]} 45. Kf2 {[%emt 0:00:04]} a3 {[%emt 0:00:05]} 46. Kf3 {[%emt 0:04:24]} Rb2 {[%emt 0:00:48]} 47. Na5 {[%emt 0:01:11]} Nd5 {[%emt 0:00:29]} 48. Nc4 {[%emt 0:00:41]} Rxe2 {[%emt 0:00:10]} 49. Kxe2 {[%emt 0:00:04]} Nc3+ {[%emt 0:00:07]} 50. Kd3 {[%emt 0:00:11]} Nxa2 {[%emt 0:00:06]} 51. Nxa3 {[%emt 0:00:05]} 1/2-1/2

[Event "Chinese League Division-A 2024"]
[Site "Fuling Chongqing"]
[Date "2024.07.01"]
[Round "5.15"]
[White "Li, Xueyi"]
[Black "Zhang, Lanlin"]
[Result "1/2-1/2"]
[ECO "D35"]
[WhiteElo "2209"]
[BlackElo "2161"]
[Annotator "TA"]
[PlyCount "64"]
[EventDate "2024.06.28"]
[EventType "team-tourn"]
[EventCountry "CHN"]
[SourceTitle "playchess.com"]
[Source "ChessBase"]
[SourceQuality "1"]
[TimeControl "40/5400+30:1800+30"]

{[%evp 11,64,8,2,12,41,35,31,27,24,23,35,37,39,23,33,23,37,31,25,0,0,0,0,6,36,16,20,15,26,27,25,0,0,0,0,0,0,0,0,0,0,0,0,0,0,0,0,0,0,0,0,0,0,0,0]} 1. d4 {[%emt 0:00:04]} Nf6 {[%emt 0:00:05]} 2. c4 {[%emt 0:00:03]} e6 {[%emt 0:00:07]} 3. Nf3 {[%emt 0:00:05]} d5 {[%emt 0:00:05]} 4. Nc3 {[%emt 0:00:12]} Be7 {[%emt 0:01:37]} 5. cxd5 {[%emt 0:00:51]} exd5 {[%emt 0:00:07]} 6. Bf4 {[%emt 0:00:08]} O-O {[%emt 0:00:29]} 7. h3 {[%emt 0:00:13]} Ne4 {[%emt 0:05:08]} 8. e3 {[%emt 0:04:01]} Nxc3 {[%emt 0:04:02]} 9. bxc3 {[%emt 0:00:07] White is slightly better.} Bf5 {[%emt 0:00:08]} 10. Bd3 {[%emt 0:15:18]} Bxd3 {[%emt 0:03:54]} 11. Qxd3 {[%emt 0:01:55]} Nd7 {[%emt 0:00:12]} 12. Rb1 {[%emt 0:02:56]} Nb6 {[%emt 0:16:24]} 13. O-O {[%emt 0:01:34][%cal Oa2a4]} Re8 {[%emt 0:10:32]} 14. Rfe1 {[%emt 0:01:54]} Bd6 {[%emt 0:01:34]} 15. Ng5 {[%emt 0:10:24]} (15. Bxd6 {simplifies} Qxd6 16. Rb3 c6 17. Reb1) 15... g6 {[%emt 0:00:22]} 16. Nf3 {[%emt 0:00:08]} Bxf4 {[%emt 0:00:24]} 17. exf4 {[%emt 0:00:12]} Qd6 {[%emt 0:00:06]} 18. f5 {[%emt 0:01:04]} Rxe1+ {[%emt 0:20:50]} 19. Rxe1 {[%emt 0:00:37]} Nc4 {[%emt 0:02:07]} 20. fxg6 {[%emt 0:02:59]} hxg6 {[%emt 0:05:47]} 21. Nh2 {[%emt 0:14:27]} Kf8 {[%emt 0:03:09] The position is equal.} 22. Qb1 {[%emt 0:01:33]} b6 {[%emt 0:02:50]} 23. Qc1 {[%emt 0:02:15] [#] Ng4 is the strong threat.} Kg7 {[%emt 0:00:04]} 24. Ng4 {[%emt 0:08:15]} Rh8 {[%emt 0:01:33] Against Qh6+} 25. Ne3 {[%emt 0:05:49]} Nxe3 {[%emt 0:04:02]} 26. Qxe3 $11 {[%emt 0:00:32][%mdl 4096] Endgame. KQR-KQR} a5 {[%emt 0:05:44]} 27. f4 {[%emt 0:04:41]} Qf6 {[%emt 0:01:08]} 28. Rf1 {[%emt 0:06:01]} Qe6 {[%emt 0:10:51]} 29. Qxe6 {[%emt 0:03:47]} fxe6 {[%emt 0:00:03]} 30. Kf2 {[%emt 0:00:39]} Kf7 {[%emt 0:00:31]} 31. Ke3 {[%emt 0:01:30]} Rh4 {[%emt 0:01:21]} 32. Rh1 {[%emt 0:02:28]} Rh8 {[%emt 0:00:11] Weighted Error Value: White=0.03 (flawless) /Black=0.03 (flawless) .  Inaccurate:     	---       	Black=2      OK:         	White=11    	Black=11     Best:        	---       	Black=2} 1/2-1/2

[Event "Chinese League Division-A 2024"]
[Site "Fuling Chongqing"]
[Date "2024.07.01"]
[Round "5.16"]
[White "Chen, Yuan"]
[Black "Wang, Yue"]
[Result "1-0"]
[ECO "E15"]
[WhiteElo "2294"]
[BlackElo "2652"]
[Annotator "RC"]
[PlyCount "155"]
[EventDate "2024.06.28"]
[EventType "team-tourn"]
[EventCountry "CHN"]
[SourceTitle "playchess.com"]
[Source "ChessBase"]
[SourceQuality "1"]
[TimeControl "40/5400+30:1800+30"]

1. d4 {[%emt 0:00:05]} Nf6 {[%emt 0:00:12]} 2. c4 {[%emt 0:00:17]} e6 {[%emt 0:00:20]} 3. Nf3 {[%emt 0:00:13]} b6 {[%emt 0:02:16]} 4. g3 {[%emt 0:02:39]} Ba6 {[%emt 0:01:46]} 5. Qc2 {[%emt 0:00:25]} Bb4+ {[%emt 0:05:25]} 6. Nbd2 {[%emt 0:02:58]} Bb7 {[%emt 0:03:27]} 7. Bg2 {[%emt 0:03:23]} Be4 {[%emt 0:03:09]} 8. Qd1 {[%emt 0:04:11]} O-O {[%emt 0:03:44]} 9. O-O {[%emt 0:00:14]} Bxd2 {[%emt 0:00:36]} 10. Nxd2 {[%emt 0:01:31]} Bxg2 {[%emt 0:06:26]} 11. Kxg2 {[%emt 0:00:05]} Qc8 {[%emt 0:03:10]} 12. e4 {[%emt 0:05:18]} Qb7 {[%emt 0:00:31]} 13. Qf3 {[%emt 0:11:24]} Nc6 {[%emt 0:02:05]} 14. Nb3 {[%emt 0:00:40]} a5 {[%emt 0:05:40]} 15. a4 {[%emt 0:15:41]} d6 {[%emt 0:14:30]} 16. Bd2 {[%emt 0:03:59]} e5 {[%emt 0:03:50]} 17. d5 {[%emt 0:00:46]} Nb8 {[%emt 0:00:08]} 18. g4 {[%emt 0:01:45]} Na6 {[%emt 0:01:13]} 19. g5 {[%emt 0:09:19]} Nd7 {[%emt 0:01:36]} 20. Kh1 {[%emt 0:14:13]} c6 {[%emt 0:12:41]} 21. Rg1 {[%emt 0:02:21]} cxd5 {[%emt 0:00:38]} 22. cxd5 {[%emt 0:00:25]} Ndc5 {[%emt 0:01:40]} 23. Nxc5 {[%emt 0:00:57]} Nxc5 {[%emt 0:01:10]} 24. Rg4 {[%emt 0:01:11]} Qd7 {[%emt 0:08:38]} 25. Rh4 {[%emt 0:03:16]} g6 {[%emt 0:03:30]} 26. Rg1 {[%emt 0:01:54]} Ra7 {[%emt 0:00:48]} 27. Rgg4 {[%emt 0:03:36]} f5 {[%emt 0:08:42]} 28. gxf6 {[%emt 0:00:09]} Qf7 {[%emt 0:00:04]} 29. Bg5 {[%emt 0:03:24]} Nd7 {[%emt 0:00:01]} 30. Rg1 {[%emt 0:07:25]} Nxf6 {[%emt 0:00:28]} 31. Bh6 {[%emt 0:01:09]} Nd7 {[%emt 0:01:00]} 32. Qg2 {[%emt 0:00:50]} Re8 {[%emt 0:01:03]} 33. Be3 {[%emt 0:00:04]} Nc5 {[%emt 0:00:18]} 34. Rg4 {[%emt 0:00:37]} Rf8 {[%emt 0:01:22]} 35. h4 {[%emt 0:00:11]} Nd3 {[%emt 0:00:48]} 36. Rf1 {[%emt 0:01:17]} Qf6 {[%emt 0:01:53]} 37. f3 {[%emt 0:00:18]} Kh8 {[%emt 0:01:19]} 38. Qd2 {[%emt 0:00:23]} Nc5 {[%emt 0:00:13]} 39. Qg2 {[%emt 0:00:40]} Raf7 {[%emt 0:01:23]} 40. Bh6 {[%emt 0:00:00]} Re8 {[%emt 0:00:00]} 41. f4 {[%emt 0:03:47]} Nd3 {[%emt 0:04:02]} 42. f5 {[%emt 0:01:22]} Nf4 {[%emt 0:04:56]} 43. Bxf4 {[%emt 0:09:26]} exf4 {[%emt 0:00:02]} 44. fxg6 {[%emt 0:12:52]} hxg6 {[%emt 0:00:04]} 45. Rgxf4 {[%emt 0:03:36]} Qxf4 {[%emt 0:00:15]} 46. Rxf4 {[%emt 0:00:02]} Rxf4 {[%emt 0:00:04]} 47. Qg5 {[%emt 0:00:03]} Rf1+ {[%emt 0:02:38]} 48. Kh2 {[%emt 0:01:58]} Kg7 {[%emt 0:03:00]} 49. h5 {[%emt 0:00:39]} Rf6 {[%emt 0:00:05]} 50. h6+ {[%emt 0:00:36]} Kf7 {[%emt 0:00:02]} 51. Qg4 {[%emt 0:00:05]} Re7 {[%emt 0:10:39]} 52. Qh4 {[%emt 0:01:17]} Re8 {[%emt 0:00:08]} 53. Qg4 {[%emt 0:00:16]} Rd8 {[%emt 0:04:04]} 54. Qg5 {[%emt 0:00:07]} Rf8 {[%emt 0:03:30]} 55. e5 {[%emt 0:00:44]} dxe5 {[%emt 0:00:05]} 56. Qxe5 {[%emt 0:00:02]} Re8 {[%emt 0:01:50]} 57. Qc7+ {[%emt 0:00:08]} Re7 {[%emt 0:00:06]} 58. Qc4 {[%emt 0:01:24]} Kf8 {[%emt 0:04:01]} 59. d6 {[%emt 0:00:26]} Re8 {[%emt 0:00:46]} 60. Qc7 {[%emt 0:01:48]} Re2+ {[%emt 0:01:31]} 61. Kg3 {[%emt 0:00:03]} Rfe6 {[%emt 0:00:01]} 62. Qg7+ {[%emt 0:01:02]} Ke8 {[%emt 0:00:00]} 63. Qg8+ {[%emt 0:00:12]} Kd7 {[%emt 0:00:01]} 64. h7 {[%emt 0:00:08]} R6e3+ {[%emt 0:01:03]} 65. Kf4 {[%emt 0:00:10]} Re4+ {[%emt 0:01:39]} 66. Kg5 {[%emt 0:00:02]} Rg2+ {[%emt 0:00:10]} 67. Kf6 {[%emt 0:00:08]} Rf2+ {[%emt 0:00:22]} 68. Kg7 {[%emt 0:00:07]} Rh2 {[%emt 0:00:07]} 69. h8=Q {[%emt 0:02:23]} Rxh8 {[%emt 0:00:02]} 70. Qxh8 {[%emt 0:00:05]} Re6 {[%emt 0:00:23]} 71. Kf7 {[%emt 0:00:58]} Rxd6 {[%emt 0:00:05]} 72. Qb8 {[%emt 0:00:29]} Rc6 {[%emt 0:00:05]} 73. Qb7+ {[%emt 0:00:11]} Kd6 {[%emt 0:00:02]} 74. Kxg6 {[%emt 0:00:07]} Kc5+ {[%emt 0:00:04]} 75. Kf5 {[%emt 0:00:08]} Rd6 {[%emt 0:00:51]} 76. Ke5 {[%emt 0:00:09]} Rd3 {[%emt 0:00:50]} 77. Qc7+ {[%emt 0:00:46]} Kb4 {[%emt 0:00:03]} 78. Qc6 {[%emt 0:00:32]} 1-0